Cogmind - Beta 17 @@@ ROGUE MODE // 2026.08.19 @ 16:01:04 Player: Boatmurdered Result: Destroyed by G-73 Enforcer with Heavy Laser Performance ------------- Evolutions (8) 4000 Regions Visited (15) 3000 Robots Destroyed (236) 1180 Value Destroyed (9035) 9035 Prototype IDs (15) 300 Alien Tech Used (0) 0 Bonus (1874) 1874 TOTAL SCORE: 19389 Bonus ------- High Alert Combat Kills 1374 Entered DSFs 500 Cogmind --------- Core Integrity 0/1450 Matter 165/300 Energy 99/100 System Corruption 2% Temperature Cool (11) Movement Flying (40) Location -2/Testing Parts ------- > --- POWER (2) -------- (None) > --- PROPULSION (8) --- Improved Q-thruster > --- UTILITY (8) ------ Experimental Terrain Scan Processor Advanced ECM Suite System Shield > --- WEAPON (5) ------- (None) > --- INVENTORY (5) ---- Light Antimatter Reactor Advanced Powered Armor Warp Gun Fusion Bomb Launcher Fusion Bomb Launcher Peak State ------------ > --- POWER ------------ Light Antimatter Reactor Light Particle Reactor > --- PROPULSION ------- Xenon Bombardment Thruster Xenon Bombardment Thruster Xenon Bombardment Thruster Impulse Thruster Array Impulse Thruster Array > --- UTILITY ---------- Experimental Power Amplifier Gravity Neutralizer Long-range Sensor Array Advanced Signal Interpreter Advanced Reaction Control System Centrium Medium Armor Plating Advanced Powered Armor Hacking Suite > --- WEAPON ----------- Heavy Machine Gun Shock Maul > --- INVENTORY -------- Compact Battery Advanced Powered Armor Improved Plasma Cutter [Rating: 125] Favorites ----------- Power Heavy Ion Engine Engine Heavy Ion Engine Power Core Cooled Fission Core Reactor Light Quantum Reactor Propulsion Advanced Treads Treads Advanced Treads Leg Flexi-carbon Leg Wheel Armored Wheel Hover Unit Antigrav Array Flight Unit Xenon Bombardment Thruster Utility Huge Storage Unit Device Seismic Detector Storage Huge Storage Unit Processor Improved Targeting Computer Hackware Hacking Suite Protection Hardened Medium Armor Plating Weapon Gauss Rifle Energy Gun Improved Lightning Gun Energy Cannon Subdweller Beam Cannon Ballistic Gun Gauss Rifle Ballistic Cannon Mass Driver Launcher Heavy Shock Bomb Launcher Special Weapon Improved Plasma Cutter Impact Weapon Shock Maul Special Melee Weapon Improved Datajack Build | -11 -10 -10 -8 -7 -6 -6 -6 -5 -5 -5 -4 -4 -3 -2 -2 ------- Run | Yrd Mat Sub Mat Fac Fac Low Low Fac Upp Upp Fac DSF Res Res Tes Slots Evolved 16 | . . . 4 2 2 . . 2 . . 2 . 2 2 . Power 1 | . . . . . . . . . . . . . . 1 . Propulsion 6 | . . . 2 1 1 . . . . . . . 2 . . Utility 6 | . . . 1 1 . . . 1 . . 2 . . 1 . Weapon 3 | . . . 1 . 1 . . 1 . . . . . . . Parts Attached 193 | 7 16 7 33 24 3 3 . 38 13 4 1 13 17 6 8 Power 17 | 1 2 . 1 3 . . . 3 1 . . 2 1 3 . Engine 8 | 1 2 . 1 3 . . . . . . . 1 . . . Core 4 | . . . . . . . . 3 1 . . . . . . Reactor 5 | . . . . . . . . . . . . 1 1 3 . Propulsion 54 | 2 5 . 8 7 . 1 . 12 3 3 . 5 7 . 1 Treads 24 | 2 1 . 8 7 . . . 6 . . . . . . . Leg 17 | . . . . . . . . 6 3 3 . 5 . . . Wheel 5 | . 4 . . . . 1 . . . . . . . . . Hover 1 | . . . . . . . . . . . . . 1 . . Flight 7 | . . . . . . . . . . . . . 6 . 1 Utility 66 | 2 5 3 10 9 1 1 . 13 2 1 1 5 8 2 3 Device 19 | 1 . 2 3 1 . 1 . 3 . . . 1 6 . 1 Storage 7 | 1 4 . . . . . . 1 . . . 1 . . . Processor 8 | . 1 . 1 . 1 . . 2 . . . 1 . 1 1 Hackware 5 | . . . . 2 . . . 1 . . 1 . . . 1 Protection 27 | . . 1 6 6 . . . 6 2 1 . 2 2 1 . Artifact . | . . . . . . . . . . . . . . . . Weapon 56 | 2 4 4 14 5 2 1 . 10 7 . . 1 1 1 4 Energy Gun 2 | . . . . . . . . . . . . . . . 2 Energy Cannon 3 | . . 2 1 . . . . . . . . . . . . Ballistic Gun 31 | 2 4 . 9 5 1 1 . 3 5 . . . 1 . . Ballistic Cannon 9 | . . 1 1 . . . . 5 . . . 1 . 1 . Launcher 6 | . . . 3 . . . . . 2 . . . . . 1 Special Weapon 1 | . . . . . . . . . . . . . . . 1 Impact Weapon 3 | . . 1 . . 1 . . 1 . . . . . . . Slashing Weapon . | . . . . . . . . . . . . . . . . Piercing Weapon . | . . . . . . . . . . . . . . . . Special Melee Weapon 1 | . . . . . . . . 1 . . . . . . . Unidentified Prototypes 12 | . 1 . 1 . 1 . . 1 . . . . 3 . 5 Corrupted Parts 4 | . . . . . . . . . . 3 . 1 . . . System Corruption 25 | . . . . . . . . . . 15 . 10 . . . Parts Lost 75 | . 1 . 3 11 . . . 22 . 5 . 19 1 12 1 Power 6 | . 1 . . . . . . . . 1 . 3 . 1 . Propulsion 28 | . . . 1 7 . . . 7 . 1 . 6 1 5 . Utility 23 | . . . . 3 . . . 6 . 1 . 8 . 5 . Weapon 18 | . . . 2 1 . . . 9 . 2 . 2 . 1 1 Highest Loss Streak 14 | . 1 . 1 3 . . . 14 . 5 . 12 1 12 1 To Critical Strikes 1 | . . . . . . . . 1 . . . . . . . Average Backups 21 | 2 13 23 23 21 22 24 25 23 24 24 24 19 4 4 4 Power 1 | . 1 1 1 1 1 1 1 1 1 . 1 . . . 1 Propulsion 3 | . 2 7 5 2 . . . 2 3 4 5 4 . . . Utility 8 | . 5 6 10 8 9 9 10 8 9 8 8 5 2 2 1 Weapon 7 | . 4 8 5 8 10 12 13 9 8 8 8 6 . . 2 Tool/Special . | . . . . . . . . . . . . . . . . Unused Backups 50 | . 6 2 18 2 . . . 9 3 . . 6 . 1 3 Power 7 | . 2 . . . . . . 3 2 . . . . . . Propulsion 10 | . . . 5 . . . . 1 . . . 4 . . . Utility 15 | . 2 1 7 1 . . . . . . . 2 . 1 1 Weapon 17 | . 2 1 5 1 . . . 5 1 . . . . . 2 Tool/Special 1 | . . . 1 . . . . . . . . . . . . Average Slot Usage (%) 95 | . 99 100 99 93 92 93 100 98 100 88 85 84 56 63 8 Engine 6 | . 14 14 9 7 6 6 6 . . . . 2 . . . Core 1 | . . . . . . . . 4 5 4 5 . . . . Treads 18 | . 21 . 22 36 33 33 33 18 . . . . . . . Leg 5 | . . . . . . . . 14 35 30 31 28 . . . Wheel 7 | . 6 28 13 . . . 6 . . . . . . . . Device 8 | . 11 9 6 6 13 13 13 8 5 5 5 3 7 15 . Storage 7 | . 14 14 9 7 6 6 6 5 5 5 5 4 . . . Processor 1 | . 2 . . . . . . 2 5 5 5 5 8 3 1 Protection 7 | . . 4 10 10 6 6 6 9 11 11 10 7 . 6 . Energy Cannon 2 | . . 19 3 . . . . . . . . . . . . Ballistic Gun 18 | . 27 5 22 21 25 26 26 14 12 17 15 9 2 . . Ballistic Cannon 2 | . . 3 . . . . . 7 7 . . 8 . . . Impact Weapon 1 | . . . . . . . . 5 4 3 5 4 4 3 . Peak Build Rating 125 | 7 16 20 40 48 47 52 52 92 91 83 77 102 114 125 31 Average Rating 46 | 5 11 17 32 43 45 50 52 74 87 71 75 83 80 111 14 On Entrance 45 | . 7 15 20 39 42 45 52 52 91 83 75 77 16 114 2 Avg Prop Armor Cover (%) 3 | . . . . 3 4 4 5 2 . . . 9 10 . . Naked Turns 5 | . . . . . . . . . . . . . . 5 . Heaviest Build 190 | 14 95 108 111 130 114 114 114 158 158 145 130 190 54 63 3 Greatest Support 145 | 40 40 24 88 108 86 86 86 145 115 105 95 130 68 62 9 Greatest Overweight (x) 4 | 3 3 4 2 2 1 1 1 2 1 1 1 2 . 1 . Average Overweight (x) 1 | . 1 3 1 . 1 1 1 . 1 1 1 . . . . Largest Inventory Capacity 25 | 8 25 25 25 25 25 25 25 25 25 25 25 25 5 5 5 Average Capacity 23 | 7 22 25 25 25 25 25 25 25 25 25 25 23 5 5 5 Most Carried 25 | 5 22 25 25 25 24 25 25 25 25 25 24 25 5 5 5 Average Carried 21 | 2 13 23 24 22 22 24 25 23 24 24 23 20 4 4 4 Final Capacity 25 | 8 25 25 25 25 25 25 25 25 25 25 25 5 5 5 5 Final Carried 25 | 5 21 25 25 22 23 25 25 25 25 24 23 5 5 4 5 Class Distribution -------------------- 33% | Tank 26% | Scavenger-Tank 21% | Mutant 10% | Scavenger-Gunner 3% | Scavenger-Sprinter Dominant Class ---------------- Mutant | -10/Materials Mutant | -10/Subcaves Tank | -8/Materials Tank | -7/Factory Scavenger-Gunner | -6/Factory Scavenger-Gunner | -6/Lower Caves Scavenger-Gunner | -6/Lower Caves Scavenger-Tank | -5/Factory Scavenger-Tank | -5/Upper Caves Scavenger-Tank | -5/Upper Caves Scavenger-Tank | -4/Factory Scavenger-Tank | -4/DSF Scavenger-Sprinter | -3/Research Scavenger-Sprinter | -2/Research Mutant | -2/Testing Resources | -11 -10 -10 -8 -7 -6 -6 -6 -5 -5 -5 -4 -4 -3 -2 -2 ----------- Run | Yrd Mat Sub Mat Fac Fac Low Low Fac Upp Upp Fac DSF Res Res Tes Matter Collected 9341 | 182 639 207 1942 1406 . 305 . 2601 617 256 . 1006 95 85 . Remotely . | . . . . . . . . . . . . . . . . Salvage Created 9189 | 66 760 298 2550 1806 . 71 . 2310 344 349 . 515 91 29 . Parts 481 | 9 43 22 157 86 . 6 . 105 14 7 . 23 7 2 . Haulers Intercepted 11 | . 2 . 6 . . . . 3 . . . . . . . Recyclers Shooed 4 | . 1 . . 1 . . . 2 . . . . . . . Parts Field Recycled . | . . . . . . . . . . . . . . . . Retrieved Matter . | . . . . . . . . . . . . . . . . Parts Self-Destructed 17 | . . 3 . . . 6 . . 6 2 . . . . . Prevented 11 | . . . . . . . 1 . 6 4 . . . . . Parts Restored 1 | . . . . . . . . . . . . . 1 . . Broken 1 | . . . . . . . . . . . . . 1 . . Kills | -11 -10 -10 -8 -7 -6 -6 -6 -5 -5 -5 -4 -4 -3 -2 -2 ------- Run | Yrd Mat Sub Mat Fac Fac Low Low Fac Upp Upp Fac DSF Res Res Tes Combat Hostiles Destroyed 176 | . 9 6 48 45 . 3 . 37 9 5 . 10 3 1 . Melee 8 | . . . 2 1 . . . 1 . . . . 3 1 . Guns 94 | . 9 . 27 24 . 3 . 19 4 5 . 3 . . . Cannons 34 | . . 5 7 . . . . 14 2 . . 6 . . . AOE 37 | . . . 12 20 . . . 2 2 . . 1 . . . Classes Destroyed 20 | 1 6 1 5 5 . . . . . . . 1 . 1 . Worker 8 | . 1 . 4 1 . . . 2 . . . . . . . Builder 6 | . . . 4 1 . . . 1 . . . . . . . Tunneler 3 | 3 . . . . . . . . . . . . . . . Hauler 11 | . 2 . 6 . . . . 3 . . . . . . . Recycler 8 | . 2 . 3 1 . . . 2 . . . . . . . Mechanic 5 | . . . . 4 . . . 1 . . . . . . . Operator 7 | . 2 . 2 1 . . . 2 . . . . . . . Watcher 12 | . 3 . 5 . . . . 4 . . . . . . . Swarmer 42 | . . . 13 8 . 3 . 6 4 . . 5 3 . . Cutter 1 | . . . . . . . . . . . . . . 1 . Grunt 74 | . 9 . 26 24 . . . 9 2 3 . 1 . . . Brawler 4 | . . . . 1 . . . 1 1 1 . . . . . Duelist 5 | . . . 1 4 . . . . . . . . . . . Protector 1 | . . . . 1 . . . . . . . . . . . Sentry 13 | . . . 7 2 . . . 3 . 1 . . . . . Specialist 4 | . . . . . . . . . . . . 4 . . . Hunter 10 | . . . . 2 . . . 6 2 . . . . . . Programmer 15 | . . . . 3 . . . 12 . . . . . . . Heavy 1 | . . . 1 . . . . . . . . . . . . Subdweller 6 | . . 6 . . . . . . . . . . . . . Best Kill Streak 10 | 1 3 2 9 9 . 3 . 10 4 4 . 5 3 1 . Combat Bots Only 9 | . 2 2 6 8 . 3 . 9 4 4 . 5 3 1 . Max Kills in Single Turn 7 | 1 1 1 7 5 . 2 . 2 2 1 . 2 1 1 . Gunslinging 1 | . . . 1 . . . . . . . . . . . . Exploded 5 | . . . 5 4 . . . 1 1 . . 1 . . . Melee 1 | . . . 1 1 . . . 1 . . . . 1 1 . Uniques/NPCs Destroyed . | . . . . . . . . . . . . . . . . Combat | -11 -10 -10 -8 -7 -6 -6 -6 -5 -5 -5 -4 -4 -3 -2 -2 -------- Run | Yrd Mat Sub Mat Fac Fac Low Low Fac Upp Upp Fac DSF Res Res Tes Hostile Shots Fired 1721 | . 33 8 207 332 . 5 . 369 100 67 . 289 58 199 54 Missed 522 | . 11 3 44 67 . 1 . 95 24 12 . 119 35 81 30 Hits 1199 | . 22 5 163 265 . 4 . 274 76 55 . 170 23 118 24 Melee 38 | . . . 5 13 . . . . 4 . . . . 16 . Projectile 1161 | . 22 5 158 252 . 4 . 274 72 55 . 170 23 102 24 Critical Strikes 53 | . . . 7 11 . . . 14 4 1 . 5 . 10 1 Actively Blocked 1 | . . . . . . . . . . . . . . 1 . Part Disruptions 2 | . . . . . . . . . . . . 2 . . . Damage Taken 21106 | . 421 160 2546 4790 . 59 . 4325 1058 1180 . 3029 483 2557 498 Core 3031 | . 85 79 157 291 . . . 297 89 84 . 429 59 1058 403 Absorbed by Shields . | . . . . . . . . . . . . . . . . Redirected to Shielding 110 | . . . . . . . . . . . . . . 110 . Ignored by Resistances 867 | . . . . . . . . 622 78 23 . 144 . . . Regen/Repaired (Parts) 555 | . 35 . 78 136 . . . 306 . . . . . . . Core Remaining (%) 71 | 100 . 34 71 58 . . 100 . . 53 . 62 95 . . Volleys Fired 478 | 10 50 7 141 98 . 2 . 97 23 17 . 29 . 4 . Largest 5 | 2 2 2 3 3 . 4 . 5 5 5 . 4 . 1 . Hottest 185 | 40 46 160 130 92 . 104 . 150 182 182 . 185 . 56 . Shots Fired 1392 | 20 102 13 394 253 . 8 . 378 73 43 . 104 . 4 . Gun 1074 | 20 102 . 330 235 . 8 . 250 46 41 . 42 . . . Cannon 282 | . . 13 58 . . . . 124 21 . . 62 . 4 . Launcher 36 | . . . 6 18 . . . 4 6 2 . . . . . Special . | . . . . . . . . . . . . . . . . Kinetic 1300 | 20 102 . 345 235 . 8 . 374 67 41 . 104 . 4 . Thermal 56 | . . 13 43 . . . . . . . . . . . . Explosive 28 | . . . 6 18 . . . 4 . . . . . . . Electromagnetic 8 | . . . . . . . . . 6 2 . . . . . Robot Hit Streak 33 | 5 10 7 16 16 . 2 . 33 7 8 . 6 . 1 . Robot Miss Streak 10 | 2 5 1 9 6 . 7 . 10 4 6 . 9 . 2 . Penetration Max 1 | . . . 1 1 . . . 1 . 1 . 1 . . . Secondary Targets 12 | . . . 1 3 . . . 4 2 2 . . . . . Max Gunslinging Chain 1 | . . . 1 1 . . . 1 1 1 . . . . . Shots Hit Robots 855 | 11 59 8 229 164 . 4 . 242 45 28 . 58 4 3 . Core Hits 473 | 6 29 5 115 122 . 7 . 124 15 15 . 32 2 1 . Critical Kills 7 | . . 1 1 2 . . . . . . . . 2 1 . Critical Parts Destroyed 16 | . . . 3 5 . . . 4 1 1 . . 1 1 . Critical Strikes 31 | . . 1 4 7 . . . 10 2 1 . 1 3 2 . Meltdown 1 | . . 1 . . . . . . . . . . . . . Destroy 15 | . . . 4 7 . . . 2 1 . . . . 1 . Blast 8 | . . . . . . . . 6 1 . . 1 . . . Smash 7 | . . . . . . . . 2 . 1 . . 3 1 . Melee Attacks 47 | . . 1 4 . . . . 25 1 3 . . 5 8 . Impact 38 | . . 1 4 . . . . 16 1 3 . . 5 8 . Slashing . | . . . . . . . . . . . . . . . . Piercing . | . . . . . . . . . . . . . . . . Sneak Attacks 12 | . . . . . . . . 12 . . . . . . . Combat Hostiles . | . . . . . . . . . . . . . . . . Follow-up Attacks 2 | . . . . . . . . 2 . . . . . . . Damage Inflicted 24090 | 117 938 224 5413 6901 . 57 . 6576 1111 804 . 1598 199 152 . Guns 12532 | 117 922 . 3519 3337 . 57 . 2970 598 538 . 474 . . . Cannons 4641 | . . 224 750 . . . . 2175 333 . . 1124 . 35 . Explosions 5693 | . 16 . 1082 3528 . . . 756 180 131 . . . . . Melee 1126 | . . . . . . . . 675 . 135 . . 199 117 . Ramming 98 | . . . 62 36 . . . . . . . . . . . Kinetic 16418 | 117 922 . 3738 3337 . 57 . 5145 931 538 . 1598 . 35 . Thermal 1175 | . . 224 531 229 . . . 191 . . . . . . . Explosive 4805 | . . . 1082 3299 . . . 424 . . . . . . . Electromagnetic 468 | . 16 . . . . . . 141 180 131 . . . . . Impact 1126 | . . . . . . . . 675 . 135 . . 199 117 . Slashing . | . . . . . . . . . . . . . . . . Piercing . | . . . . . . . . . . . . . . . . Highest Corruption 26 | . 1 1 . 5 . . . 11 11 26 . 11 2 . 2 Average Corruption 5 | . 1 1 . 2 . . . 6 11 11 . 4 1 . 1 Corruption Purged 1 | . . 1 . . . . . . . . . . . . . Corruption Blocked . | . . . . . . . . . . . . . . . . Effects 139 | . 4 1 . 23 . . . 50 45 7 . 9 . . . Message Errors 29 | . . . . 3 . . . 11 11 1 . 3 . . . Matter Fused 42 | . . . . 6 . . . 15 18 . . 3 . . . Heat Flow Errors 14 | . 2 . . 3 . . . 8 . . . 1 . . . Energy Discharges 16 | . . 1 . 2 . . . 6 4 2 . 1 . . . Parts Rejected 1 | . . . . 1 . . . . . . . . . . . Parts Fused 2 | . . . . . . . . 1 1 . . . . . . Data Loss (minor) 15 | . . . . 5 . . . 4 3 2 . 1 . . . Data Loss (major) 3 | . . . . 1 . . . . 2 . . . . . . Misfires 8 | . 2 . . 1 . . . 3 1 1 . . . . . Alerts 2 | . . . . . . . . 2 . . . . . . . Misdirections 1 | . . . . . . . . . . 1 . . . . . Weapon Failures 6 | . . . . 1 . . . . 5 . . . . . . Overload Shots . | . . . . . . . . . . . . . . . . Overflow Damage 880 | . . . 131 149 . . . 449 . 40 . 8 88 15 . Projectiles 136 | . . . . . . . . 128 . . . 8 . . . Explosions 384 | . . . 131 149 . . . 104 . . . . . . . Melee 360 | . . . . . . . . 217 . 40 . . 88 15 . Knockbacks 38 | . . . . . . . . 28 4 . . 4 . 2 . Impact 2 | . . . . . . . . 1 . . . . . 1 . Kinetic 34 | . . . . . . . . 25 4 . . 4 . 1 . Secondary 2 | . . . . . . . . 2 . . . . . . . Self-Inflicted Damage 763 | . 100 . 104 510 . . . . 34 15 . . . . . Shots 21 | . 3 . 3 12 . . . . 2 1 . . . . . Rammed 15 | . . . 9 6 . . . . . . . . . . . Targets Rammed 17 | . . . 11 6 . . . . . . . . . . . Kicked . | . . . . . . . . . . . . . . . . Crushed 2 | . . . 2 . . . . . . . . . . . . Highest Temperature 2016 | . 257 183 477 420 . 88 . 535 392 405 . 2016 5 22 . Average Temperature 144 | . 24 70 103 143 . 49 . 132 167 256 . 442 2 4 . Received Heat Transfer 4024 | . 162 12 1053 1389 . . . 279 300 306 . 361 9 117 36 Effects 66 | . . . 10 7 . . . 11 4 5 . 29 . . . Shutdowns 1 | . . . 1 . . . . . . . . . . . . Energy Bleed 8 | . . . 2 3 . . . . 1 . . 2 . . . Interference 29 | . . . 5 3 . . . 9 3 3 . 6 . . . Matter Decay 5 | . . . . . . . . 1 . . . 4 . . . Short Circuit 2 | . . . . 1 . . . . . . . 1 . . . Damage (minor) 8 | . . . . . . . . 1 . 2 . 5 . . . Damage (major) 11 | . . . 2 . . . . . . . . 9 . . . Damage (core) 2 | . . . . . . . . . . . . 2 . . . Siege Activations . | . . . . . . . . . . . . . . . . Martial Activations . | . . . . . . . . . . . . . . . . Shielding Activations . | . . . . . . . . . . . . . . . . Robots Disrupted . | . . . . . . . . . . . . . . . . Combat Hostiles . | . . . . . . . . . . . . . . . . Robots Corrupted 4 | . . . . . . . . 3 1 . . . . . . Combat Hostiles 2 | . . . . . . . . 1 1 . . . . . . Parts Fried 8 | . . . . . . . . 4 1 . . 2 1 . . Impact Corruptions 14 | . . . . . . . . 9 . 1 . . 3 1 . Robots Melted 1 | . . 1 . . . . . . . . . . . . . Combat Hostiles 1 | . . 1 . . . . . . . . . . . . . Parts Melted 1 | . . . . . . . . 1 . . . . . . . Heat Transferred 1397 | . . 296 851 150 . . . 100 . . . . . . . Parts Sabotaged . | . . . . . . . . . . . . . . . . Parts Stolen . | . . . . . . . . . . . . . . . . Parts Stripped . | . . . . . . . . . . . . . . . . Power Chain Reactions 1 | . 1 . . . . . . . . . . . . . . Alert | -11 -10 -10 -8 -7 -6 -6 -6 -5 -5 -5 -4 -4 -3 -2 -2 ------- Run | Yrd Mat Sub Mat Fac Fac Low Low Fac Upp Upp Fac DSF Res Res Tes Maximum Alert Level 4 | . . . 3 4 2 . . 2 . . . 1 1 1 . Low Security (%) 55 | 100 100 . 53 . . . . 55 . . 100 71 95 74 100 Level 1 19 | . . . 25 . . . . 32 . . . 28 4 25 . Level 2 13 | . . . 10 36 100 . . 12 . . . . . . . Level 3 7 | . . . 10 23 . . . . . . . . . . . Level 4 5 | . . . . 39 . . . . . . . . . . . Level 5 . | . . . . . . . . . . . . . . . . High Security . | . . . . . . . . . . . . . . . . Max Security . | . . . . . . . . . . . . . . . . Sterilizations 1 | . . . . . . . . . . . . 1 . . . Peak Influence 1343 | 5 99 . 1008 1343 641 . . 482 . . 14 288 208 249 110 Initial 641 | . . . . 458 641 . . . . . 14 9 153 99 13 Average 298 | . 30 . 261 898 579 . . 218 . . 14 137 149 149 30 Influence Increases 6573 | 15 412 . 1585 1575 5 70 . 1471 220 110 . 454 256 226 174 Destroy 0b10 Robot/C 3380 | . 180 . 960 880 . 60 . 740 180 100 . 200 60 20 . Destroy 0b10 Robot/NC 305 | 15 50 . 120 45 . . . 75 . . . . . . . Destroy Leader 726 | . 60 . 222 170 . 10 . 184 40 10 . 20 10 . . Trap Triggered on 0b10 90 | . . . . . . . . . . . . 90 . . . Successful Hack 211 | . 57 . 29 39 5 . . 51 . . . . 21 . 9 Disable Machine 405 | . 45 . 60 90 . . . 180 . . . 15 . . 15 Anti-Garrison Action 350 | . . . . 150 . . . . . . . . . 200 . Destroy Structure 431 | . 5 . 104 96 . . . 196 . . . 24 . 6 . Lose Combat Pursuer 675 | . 15 . 90 105 . . . 45 . . . 105 165 . 150 Influence Decreases 6473 | 15 345 67 577 1274 798 586 . 997 651 129 10 195 352 378 99 Entered New Map 1854 | . . 33 . 550 668 192 . . 177 9 10 5 120 78 12 Time Decay 3722 | 15 335 34 547 614 130 394 . 627 474 70 . . 222 180 80 Lost Part 747 | . 10 . 30 110 . . . 220 . 50 . 190 10 120 7 Purge Threat 150 | . . . . . . . . 150 . . . . . . . Squads Dispatched 58 | . 2 . 7 18 . . . 14 . . . 4 4 4 5 Investigation 6 | . . . 1 2 . . . 2 . . . . . 1 . Extermination 12 | . . . . 3 . . . 5 . . . . 2 1 1 Reinforcement 25 | . 2 . 6 3 . . . 2 . . . 4 2 2 4 Assault 7 | . . . . 6 . . . 1 . . . . . . . Garrison 8 | . . . . 4 . . . 4 . . . . . . . Intercept . | . . . . . . . . . . . . . . . . Searches Triggered . | . . . . . . . . . . . . . . . . Construction Impeded 2 | . . . 1 . . . . 1 . . . . . . . Haulers Reinforced 1 | . . . . 1 . . . . . . . . . . . Active Scanning Responses . | . . . . . . . . . . . . . . . . Cargo Convoy Interrupts 1 | . . . . . . . . . . . . . 1 . . Stealth | -11 -10 -10 -8 -7 -6 -6 -6 -5 -5 -5 -4 -4 -3 -2 -2 --------- Run | Yrd Mat Sub Mat Fac Fac Low Low Fac Upp Upp Fac DSF Res Res Tes Distress Signals 11 | . 3 . 3 1 . . . 2 . . . . . 1 1 Communications Jammed . | . . . . . . . . . . . . . . . . Distress Signals . | . . . . . . . . . . . . . . . . Times Spotted 361 | . 23 6 77 73 . 3 . 54 10 6 . 28 40 17 24 Peak Tracking Total 21 | . 3 2 10 8 . 3 . 7 4 5 . 9 21 15 9 Tactical Retreats 27 | . 1 . 5 5 . . . 3 . . . 5 5 . 3 Traps | -11 -10 -10 -8 -7 -6 -6 -6 -5 -5 -5 -4 -4 -3 -2 -2 ------- Run | Yrd Mat Sub Mat Fac Fac Low Low Fac Upp Upp Fac DSF Res Res Tes Traps Triggered 7 | . 2 1 1 . . . . 3 . . . . . . . Indirectly . | . . . . . . . . . . . . . . . . Trap Hack Attempts . | . . . . . . . . . . . . . . . . Triggered . | . . . . . . . . . . . . . . . . Disarmed . | . . . . . . . . . . . . . . . . Reprogrammed . | . . . . . . . . . . . . . . . . Reused 10 | . . . . . . . . . . . . 10 . . . Traps Extracted . | . . . . . . . . . . . . . . . . Installed 13 | . . . . . . . . . . . . 13 . . . Triggered 9 | . . . . . . . . . . . . 9 . . . Most Traps Carried 4 | . . . . . . . . . . . . 4 . . . Machines | -11 -10 -10 -8 -7 -6 -6 -6 -5 -5 -5 -4 -4 -3 -2 -2 ---------- Run | Yrd Mat Sub Mat Fac Fac Low Low Fac Upp Upp Fac DSF Res Res Tes Machines Disabled 29 | . 3 . 4 7 . . . 12 1 . . 1 . . 1 Max in Single Turn 4 | . 2 . 2 2 . . . 4 1 . . 1 . . 1 Garrison Access 5 | . . . 1 2 . . . 1 . . . . . 1 . Machines Repaired . | . . . . . . . . . . . . . . . . Machines Dismantled 1 | . . . . . . . . . . . . . . . 1 Machines Sabotaged . | . . . . . . . . . . . . . . . . Overloaded Fab Kills . | . . . . . . . . . . . . . . . . Hacking | -11 -10 -10 -8 -7 -6 -6 -6 -5 -5 -5 -4 -4 -3 -2 -2 --------- Run | Yrd Mat Sub Mat Fac Fac Low Low Fac Upp Upp Fac DSF Res Res Tes Machines Accessed 64 | . 10 1 16 8 3 . . 15 . . 1 . 4 3 3 Terminals 33 | . 7 . 9 2 2 . . 7 . . 1 . 2 1 2 Fabricators 2 | . . . . 1 1 . . . . . . . . . . Repair Stations 9 | . 1 . 2 1 . . . 2 . . . . 1 1 1 Recycling Units 9 | . 2 . 2 1 . . . 3 . . . . 1 . . Scanalyzers 4 | . . . 2 1 . . . 1 . . . . . . . Garrison Access 6 | . . . 1 2 . . . 2 . . . . . 1 . Total Hacks 170 | . 37 5 36 19 6 . . 40 . . 4 . 10 7 6 Successful 81 | . 19 5 21 9 1 . . 18 . . 1 . 3 2 2 Failed 87 | . 17 . 14 10 5 . . 22 . . 3 . 7 5 4 Catastrophic 10 | . 1 . 3 . 1 . . 3 . . . . . 1 1 Database Lockouts 2 | . 1 . 1 . . . . . . . . . . . . Manual 82 | . 27 . 20 6 3 . . 17 . . . . 4 3 2 Terminals 84 | . 27 . 18 5 3 . . 16 . . 4 . 4 3 4 Fabricators 7 | . . . . 4 3 . . . . . . . . . . Repair Stations 24 | . 2 . 5 2 . . . 7 . . . . 4 2 2 Recycling Units 26 | . 8 . 6 2 . . . 8 . . . . 2 . . Scanalyzers 11 | . . . 6 2 . . . 3 . . . . . . . Garrison Access 13 | . . . 1 4 . . . 6 . . . . . 2 . Terminal Hacks 13 | . 3 5 . . . . . 2 . . 1 . . . 2 Record 5 | . . 5 . . . . . . . . . . . . . Part Schematic 2 | . 1 . . . . . . . . . . . . . 1 Prototype ID Bank 1 | . 1 . . . . . . . . . . . . . . Open Door 1 | . . . . . . . . . . . . . . . 1 Open DSF 1 | . . . . . . . . . . . 1 . . . . Emergency Access Points 1 | . 1 . . . . . . . . . . . . . . Terminal Index 1 | . . . . . . . . 1 . . . . . . . Unreport Threat 1 | . . . . . . . . 1 . . . . . . . Fabricator Hacks 2 | . . . . 2 . . . . . . . . . . . Load Schematic 1 | . . . . 1 . . . . . . . . . . . Build 1 | . . . . 1 . . . . . . . . . . . Repair Station Hacks 12 | . 2 . 3 2 . . . 4 . . . . 1 . . Scan Component 7 | . 1 . 2 1 . . . 2 . . . . 1 . . Repair 5 | . 1 . 1 1 . . . 2 . . . . . . . Recycling Unit Hacks 10 | . 2 . 3 2 . . . 3 . . . . . . . Process 2 | . . . . 1 . . . 1 . . . . . . . Report Inventory 6 | . 2 . 2 . . . . 2 . . . . . . . Retrieve Matter 1 | . . . . 1 . . . . . . . . . . . Retrieve Components 1 | . . . 1 . . . . . . . . . . . . Scanalyzer 5 | . . . 4 . . . . 1 . . . . . . . Insert Component 1 | . . . 1 . . . . . . . . . . . . Analyze 2 | . . . 2 . . . . . . . . . . . . Retrieve Study 2 | . . . 1 . . . . 1 . . . . . . . Garrison Access Hacks 3 | . . . 1 1 . . . 1 . . . . . . . Seal Access 3 | . . . 1 1 . . . 1 . . . . . . . Unauthorized Hacks 36 | . 12 . 10 2 1 . . 7 . . . . 2 2 . Terminals 27 | . 8 . 9 2 1 . . 4 . . . . 2 1 . Botnet 15 | . 2 . 4 2 1 . . 3 . . . . 2 1 . Skim 12 | . 6 . 5 . . . . 1 . . . . . . . Fabricators . | . . . . . . . . . . . . . . . . Repair Stations . | . . . . . . . . . . . . . . . . Recycling Units 8 | . 4 . 1 . . . . 3 . . . . . . . Reject 4 | . 2 . 1 . . . . 1 . . . . . . . Mask 4 | . 2 . . . . . . 2 . . . . . . . Scanalyzers . | . . . . . . . . . . . . . . . . Garrison Access 1 | . . . . . . . . . . . . . . 1 . Jam 1 | . . . . . . . . . . . . . . 1 . Data Cores Recovered 2 | . . . 1 . . . . 1 . . . . . . . Used 1 | . . . 1 . . . . . . . . . . . . Hacking Detections 55 | . 9 . 14 6 3 . . 14 . . 1 . 4 3 1 Full Trace Events 4 | . . . . 2 . . . 2 . . . . . . . Feedback Events . | . . . . . . . . . . . . . . . . Feedback Blocked . | . . . . . . . . . . . . . . . . Robot Schematics Acquired . | . . . . . . . . . . . . . . . . Robots Built . | . . . . . . . . . . . . . . . . Authchips . | . . . . . . . . . . . . . . . . Time . | . . . . . . . . . . . . . . . . Total Robot Build Rating . | . . . . . . . . . . . . . . . . Part Schematics Acquired 3 | . 1 . 1 . . . . . . . . . . . 1 Parts Built 2 | . . . . 2 . . . . . . . . . . . Authchips . | . . . . . . . . . . . . . . . . Time 36 | . . . . 36 . . . . . . . . . . . Total Part Build Rating 6 | . . . . 6 . . . . . . . . . . . Part Studies Acquired 2 | . . . 1 . . . . 1 . . . . . . . Parts Repaired 5 | . 1 . 1 1 . . . 2 . . . . . . . Time 155 | . 32 . 32 19 . . . 72 . . . . . . . Parts Recycled . | . . . . . . . . . . . . . . . . Recycled Matter 325 | . . . . 120 . . . 205 . . . . . . . Retrieved Matter 120 | . . . . 120 . . . . . . . . . . . Retrieved Components 10 | . . . 10 . . . . . . . . . . . . Parts Scanalyzed 1 | . . . 1 . . . . . . . . . . . . Part Schematics Acquired 1 | . . . 1 . . . . . . . . . . . . Parts Damaged . | . . . . . . . . . . . . . . . . Bothacking | -11 -10 -10 -8 -7 -6 -6 -6 -5 -5 -5 -4 -4 -3 -2 -2 ------------ Run | Yrd Mat Sub Mat Fac Fac Low Low Fac Upp Upp Fac DSF Res Res Tes Used RIF Installer . | . . . . . . . . . . . . . . . . Robots Hacked 3 | . . . . . . . . 3 . . . . . . . Non-combat 3 | . . . . . . . . 3 . . . . . . . Combat . | . . . . . . . . . . . . . . . . Robot Hacks Applied 9 | . . . . . . . . 9 . . . . . . . parse_system 1 | . . . . . . . . 1 . . . . . . . no_distress 3 | . . . . . . . . 3 . . . . . . . find_fabricator 3 | . . . . . . . . 3 . . . . . . . find_dsf 2 | . . . . . . . . 2 . . . . . . . Relay Couplers Released 3 | . . . . 3 . . . . . . . . . . . Machine Destruction 3 | . . . . 3 . . . . . . . . . . . Fabnet Peak Effective % . | . . . . . . . . . . . . . . . . Robots Rewired . | . . . . . . . . . . . . . . . . Allies Hacked . | . . . . . . . . . . . . . . . . Hacks Repelled . | . . . . . . . . . . . . . . . . Allies | -11 -10 -10 -8 -7 -6 -6 -6 -5 -5 -5 -4 -4 -3 -2 -2 -------- Run | Yrd Mat Sub Mat Fac Fac Low Low Fac Upp Upp Fac DSF Res Res Tes Total Allies . | . . . . . . . . . . . . . . . . Largest Group . | . . . . . . . . . . . . . . . . Highest-Rated Group . | . . . . . . . . . . . . . . . . Highest-Rated Ally . | . . . . . . . . . . . . . . . . Initial Warlord ECA Mod 9 | . . . . . . . . . . . . . 9 8 8 Total Orders . | . . . . . . . . . . . . . . . . Ally Attacks . | . . . . . . . . . . . . . . . . Total Damage . | . . . . . . . . . . . . . . . . Kills . | . . . . . . . . . . . . . . . . Allies Corrupted . | . . . . . . . . . . . . . . . . Allies Melted . | . . . . . . . . . . . . . . . . Intel | -11 -10 -10 -8 -7 -6 -6 -6 -5 -5 -5 -4 -4 -3 -2 -2 ------- Run | Yrd Mat Sub Mat Fac Fac Low Low Fac Upp Upp Fac DSF Res Res Tes Active Infowar (turns) 9061 | 70 1509 1121 3747 489 163 1077 193 332 . . . . 18 341 1 Sensors 359 | . . . . . . . . . . . . . 18 341 . IFF 1464 | . . . . . . 939 193 332 . . . . . . . Seismic 7237 | 70 1509 1121 3747 489 163 138 . . . . . . . . . ECM 1 | . . . . . . . . . . . . . . . 1 Robot Analysis Total . | . . . . . . . . . . . . . . . . Derelict Logs Recovered 3 | . . 1 . . . 1 . . 1 . . . . . . Drone Launches . | . . . . . . . . . . . . . . . . Drone Recoveries . | . . . . . . . . . . . . . . . . Exploration | -11 -10 -10 -8 -7 -6 -6 -6 -5 -5 -5 -4 -4 -3 -2 -2 ------------- Run | Yrd Mat Sub Mat Fac Fac Low Low Fac Upp Upp Fac DSF Res Res Tes Turns Passed 19311 | 151 1829 1670 5756 2028 271 1077 193 3323 1201 157 13 617 461 362 202 Spaces Moved 8449 | 62 699 1017 1814 700 131 488 98 1317 566 42 6 258 528 361 362 Core 288 | 8 . . . . . . . . . . . 36 . 42 202 Treads 3660 | 54 458 . 1118 700 131 488 98 613 . . . . . . . Legs 1540 | . . . . . . . . 704 566 42 6 222 . . . Wheels 1954 | . 241 1017 696 . . . . . . . . . . . . Hover . | . . . . . . . . . . . . . . . . Flight 1007 | . . . . . . . . . . . . . 528 319 160 Fastest Speed 26 | 50 135 135 120 158 198 198 198 150 191 190 190 50 26 30 40 Average Speed 158 | 158 214 148 160 212 198 198 198 183 191 191 190 166 32 33 45 Slowest Speed 320 | 200 320 150 198 272 198 198 198 263 191 192 190 260 42 110 50 Overloaded Moves . | . . . . . . . . . . . . . . . . Propulsion Burnouts . | . . . . . . . . . . . . . . . . Robots Hopped 18 | . . . . . . . . . . . . . 7 3 8 Potential Cave-ins . | . . . . . . . . . . . . . . . . Cave-ins Triggered . | . . . . . . . . . . . . . . . . Exploration Rate (%) 41 | 6 97 59 97 22 4 54 15 29 61 5 . 91 21 10 57 Regions Visited 15 Branch Regions 6 Pre-discovered Areas 1 | . . . . . . . . . 1 . . . . . . Known Exits Taken 4 | . 1 . 1 . 1 . . . . . 1 . . . . Unknown Exits Taken 10 | 1 . 1 . 1 . 1 1 1 1 1 . . 1 1 . Scrap Searched 16 | . . 7 . . . 4 3 . 1 1 . . . . . Spaces Dug 6 | . . . 3 . . . . 1 . . . . . 2 . Terrain Destroyed 367 | . 2 3 126 103 . . . 96 10 2 . 23 . 2 . Melee 6 | . . . 3 . . . . 1 . . . . . 2 . Projectile 109 | . . 3 18 5 . . . 48 10 2 . 23 . . . AOE 249 | . 2 . 102 98 . . . 47 . . . . . . . Terrain Rammed . | . . . . . . . . . . . . . . . . Walls Destroyed . | . . . . . . . . . . . . . . . . Machines Disabled . | . . . . . . . . . . . . . . . . Actions | -11 -10 -10 -8 -7 -6 -6 -6 -5 -5 -5 -4 -4 -3 -2 -2 --------- Run | Yrd Mat Sub Mat Fac Fac Low Low Fac Upp Upp Fac DSF Res Res Tes Total 13341 | 93 947 1159 4372 1028 142 594 97 2010 641 82 7 405 798 580 386 Wait 3674 | 10 143 103 2250 145 . 100 . 422 24 12 . 22 240 195 8 Move 8399 | 61 698 1016 1813 699 130 487 97 1316 565 41 6 257 513 354 346 Hop 18 | . . . . . . . . . . . . . 7 3 8 Pick Up 200 | 5 24 12 45 16 4 2 . 46 5 3 . 25 8 2 3 Fast Attach 56 | 7 1 . 2 2 . 1 . 19 1 . . 1 14 3 5 Attach 80 | . 1 1 10 18 3 . . 18 . 4 1 15 2 3 4 Detach 9 | . . . . 1 1 . . . . . . 1 1 1 4 Swap 180 | . 17 12 50 34 4 2 . 30 16 2 . 10 1 2 . Drop 167 | . 13 7 46 9 . . . 40 6 . . 32 7 5 2 Fire 478 | 10 50 7 141 98 . 2 . 97 23 17 . 29 . 4 . Melee 44 | . . 1 4 . . . . 22 1 3 . . 5 8 . Ram . | . . . . . . . . . . . . . . . . Kick . | . . . . . . . . . . . . . . . . Crush 17 | . . . 11 6 . . . . . . . . . . . Escape Stasis . | . . . . . . . . . . . . . . . . Rewire . | . . . . . . . . . . . . . . . . Trap 13 | . . . . . . . . . . . . 13 . . . Miscellaneous 6 | . . . . . . . . . . . . . . . 6 Route ------- -11/Scrapyard -10/Materials (discovered 6 exits: *Mat x3 / [*Min x2] / *Sub) -10/Subcaves (discovered 3 exits: *Mat x2 / Rec) -8/Materials (discovered 3 exits: *Fac x3) -7/Factory (discovered 2 exits: *Fac x2) -6/Factory -6/Lower Caves -6/Lower Caves -5/Factory (discovered 3 exits: *Fac / [*Upp x2]) -5/Upper Caves -5/Upper Caves -4/Factory -4/DSF -3/Research -2/Research -2/Testing History --------- Turn | Location | Event 18 | -11/Scrapyard | Discovered new exit (range 15) 152 | -11/Scrapyard | Entered Materials 209 | -10/Materials | Discovered new exit (range 6) 304 | -10/Materials | Build established: Mutant 575 | -10/Materials | Discovered new exit (range 6) 743 | -10/Materials | Discovered new exit (range 3) 1411 | -10/Materials | Discovered new exit (range 13) 1727 | -10/Materials | Discovered new exit (range 4) 1742 | -10/Materials | Central database locked down 1798 | -10/Materials | Loaded intel: 15 trap records 1845 | -10/Materials | Identified exit to Materials 1869 | -10/Materials | Repaired Arm. Wheel 1883 | -10/Materials | Learned 4 Recycling zone layouts 1924 | -10/Materials | Identified exit to Subcaves 1928 | -10/Materials | Loaded intel: 8 terminal locations 1934 | -10/Materials | Learned Storage emergency access door positions 1948 | -10/Materials | Learned Storage stockpile data 1971 | -10/Materials | Learned Storage stockpile data 1981 | -10/Materials | Entered Subcaves 2038 | -10/Subcaves | Shifting Twisted Machinery released Mak. System Restoration Module 2043 | -10/Subcaves | Learned Materials security intel 2177 | -10/Subcaves | Discovered new exit (range 15) 2259 | -10/Subcaves | Visited Clippyterm 2264 | -10/Subcaves | Identified exit to Recycling 2264 | -10/Subcaves | Learned Factory emergency access door positions 2481 | -10/Subcaves | Shifting Twisted Machinery released Mak. Light Armor Plating 2900 | -10/Subcaves | Shifting Twisted Machinery released Battle Rifle 3009 | -10/Subcaves | Core integrity fell below 50% 3584 | -10/Subcaves | Shifting Twisted Machinery released Sub. Optics 3640 | -10/Subcaves | Discovered new exit (range 8) 3651 | -10/Subcaves | Entered Materials 3651 | -8/Materials | Evolved 4 slots: Propulsion x2, Utility x1, Weapon x1 3951 | -8/Materials | Build established: Derelict-Tank 4273 | -8/Materials | Repaired Battle Rifle 4575 | -8/Materials | Build established: Tank 5739 | -8/Materials | Central database locked down 7226 | -8/Materials | Discovered new exit (range 15) 8306 | -8/Materials | Discovered new exit (range 6) 8458 | -8/Materials | Identified exit to Factory 8601 | -8/Materials | Discovered exit to Factory (range 12) 9407 | -8/Materials | Entered Factory 9407 | -7/Factory | Evolved 2 slots: Propulsion x1, Utility x1 9697 | -7/Factory | Destroyed 8 combat bots 10182 | -7/Factory | Repaired Adv. Treads+ 10207 | -7/Factory | First assault squad dispatched 10270 | -7/Factory | Garrison activated, responded to threat 10660 | -7/Factory | Lost 3 parts (2n1u) 10693 | -7/Factory | Discovered new exit (range 14) 11164 | -7/Factory | Fabricated Adv. Treads (x2) 11207 | -7/Factory | Destroyed 7 combat bots 11358 | -7/Factory | Discovered new exit (range 13) 11435 | -7/Factory | Entered another Factory area 11435 | -6/Factory | Evolved 2 slots: Propulsion x1, Weapon x1 11597 | -6/Factory | Discovered new exit (range 14) 11704 | -6/Factory | Identified exit to Lower Caves 11706 | -6/Factory | Entered Lower Caves 11726 | -6/Lower Caves | Build established: Scavenger-Gunner 12061 | -6/Lower Caves | Learned Factory non-interactive machine intel 12591 | -6/Lower Caves | Discovered new exit (range 11) 12783 | -6/Lower Caves | Entered another Lower Caves area 12784 | -6/Lower Caves | Encountered a Warlord checkpoint 12920 | -6/Lower Caves | Discovered new exit (range 9) 12976 | -6/Lower Caves | Entered Factory 12976 | -5/Factory | Evolved 2 slots: Utility x1, Weapon x1 12977 | -5/Factory | Loaded intel: 228 non-interactive machine locations 13098 | -5/Factory | Repaired Broken Adv. Treads+ 13203 | -5/Factory | Garrison activated, responded to threat 13249 | -5/Factory | Destroyed 9 combat bots 13252 | -5/Factory | Lost 4 parts (1n1u2w) 13511 | -5/Factory | Build established: Scavenger-Tank 13784 | -5/Factory | Found Powered Armor 13787 | -5/Factory | Found Powered Armor 13790 | -5/Factory | Found Powered Armor 13793 | -5/Factory | Found Powered Armor 14059 | -5/Factory | Discovered new exit (range 12) 14263 | -5/Factory | Repaired Adv. Treads+ 14517 | -5/Factory | Discovered new exit (range 16) 14665 | -5/Factory | Garrison activated, responded to threat 14781 | -5/Factory | Lost 14 parts (4n3u7w) 15148 | -5/Factory | Discovered new exit (range 16) 15508 | -5/Factory | System corruption reached 10% 16276 | -5/Factory | First assault squad dispatched 16299 | -5/Factory | Entered Upper Caves 17145 | -5/Upper Caves | Learned location of Armory (-4) 17391 | -5/Upper Caves | Spotted B-75 Beast 17464 | -5/Upper Caves | Discovered new exit (range 11) 17500 | -5/Upper Caves | Entered another Upper Caves area 17505 | -5/Upper Caves | Attracted the attention of an 0b10 checkpoint 17571 | -5/Upper Caves | Lost 5 parts (1p1n1u2w) 17589 | -5/Upper Caves | Discovered new exit (range 8) 17657 | -5/Upper Caves | Entered Factory 17657 | -4/Factory | Evolved 2 slots: Utility x2 17670 | -4/Factory | Identified exit to DSF 17670 | -4/Factory | Entered DSF 17700 | -4/DSF | Additional patrols routed to DSF 18127 | -4/DSF | Sterilization system engaged 18142 | -4/DSF | System corruption reached 10% 18147 | -4/DSF | Ambient heat levels rising (+10) 18162 | -4/DSF | Ambient heat levels rising (+10) 18175 | -4/DSF | Lost 12 parts (1p4n5u2w) 18177 | -4/DSF | Ambient heat levels rising (+10) 18192 | -4/DSF | Ambient heat levels rising (+10) 18207 | -4/DSF | Ambient heat levels rising (+10) 18222 | -4/DSF | Ambient heat levels rising (+10) 18237 | -4/DSF | Ambient heat levels rising (+10) 18252 | -4/DSF | Ambient heat levels rising (+10) 18256 | -4/DSF | Lost 3 parts (1p2n) 18267 | -4/DSF | Ambient heat levels rising (+10) 18279 | -4/DSF | Discovered new exit (range 16) 18282 | -4/DSF | Ambient heat levels rising (+10) 18287 | -4/DSF | Entered Research 18287 | -3/Research | Evolved 2 slots: Propulsion x2 18713 | -3/Research | Cargo convoy interrupted 18714 | -3/Research | Spotted Striker 18714 | -3/Research | Spotted Striker 18726 | -3/Research | Build established: Scavenger-Sprinter 18729 | -3/Research | Found Adv. Powered Armor 18732 | -3/Research | Found Adv. Powered Armor 18743 | -3/Research | Discovered new exit (range 16) 18748 | -3/Research | Entered another Research area 18748 | -2/Research | Evolved 2 slots: Power x1, Utility x1 19101 | -2/Research | Core integrity fell below 50% 19108 | -2/Research | Discovered new exit (range 4) 19110 | -2/Research | Entered Testing 19116 | -2/Testing | Found Prototype Launcher 19116 | -2/Testing | Identified Point Singularity Launcher 19122 | -2/Testing | Found Fusion Bomb Launcher 19124 | -2/Testing | Found Fusion Bomb Launcher 19127 | -2/Testing | Lost 12 parts (1p5n5u1w) 19156 | -2/Testing | Found Prototype Energy Gun 19156 | -2/Testing | Identified Warp Gun 19204 | -2/Testing | Core integrity fell below 20% 19232 | -2/Testing | Found Prototype Processor 19232 | -2/Testing | Identified Exp. Terrain Scan Processor 19312 | -2/Testing | Destroyed by G-73 Enforcer with Heavy Laser Last Messages --------------- 19271_ ALERT: Potential suspicious activity detected, Programmers report to Testing Zone 7P. 19284_ C-65 Expert calibrates the Containment Shield. 19285_ O-32 Director: "IFF HANDSHAKE FAILED. SECURING TERMINAL." 19286_ Acquired Adv. ECM Suite. 19291_ ALERT: Hostiles spotted, dispatching reinforcements to Terminal T009. 19301_ Connecting with Repair Station... 19304_ Drone sends a signal. 19305_ Door malfunctions. 19307_ P-80 Master resets M-36 Artificer, system corruption cleaned. 19309_ Wave Intensifier disabled. 19310_ Slug penetrates Wave Intensifier. 19310_ Penetrated by Slug. 19310_ Drone destroyed. 19311_ Slug penetrates Wall. Map ----- +----------------------------------------------------+ | ???????????????????????????????# # # | | ???????????????????????????????# # # | | ???????????????????????????????# # " | | ????????????###############????# # [ " | | ????????????# # #????# # " | | ????????????# """" # #????#] # """" | | ????????????# """" # ##########/##+# """" " | | ????????????# """" / # """" " | | ????????????# """" # # """" " | | ????????????# """" =# + """" # | | ????????????# # # # | | ?????####???# ########/########### """" # | | ????"""""#??# #??# #?????# """" # | | ???#""T""#??##"" ""###??# #?????# """" # | | ?#? ??#""R""#????# ! = #?????# """" # | | ?# "" ""# """"#????# #?????# """" # | | ?# """ ""#######????#%" """" #?????# # | | ?# "R """ T"#??????????# """"""" #?????# # | | ?# """ """ ""#??????????# """"""" #?????#####+#### | | ?# "" """ ""#??????????#hp #?????????# #??? | | ?# #????????????#/#########?????????# #??? | | ?# #????????????# #?????????????????# #??? | | ?####+########??????????#h#?????????????????# #??? | | ???# + #??????????# ###############???# #??? | | ???# # #??????????#c #???# #??? | | ???# # #??????????#@g #???# #??? | | ???# / ^ ############g #???# #??? | | ???# # / #???# #??? | | ???# # ] ############ ###### n #???# #??? | | #### ###+####??????????# #????# ##### #??? | | #?????????????????# #????# #??? | | #### #?????????????????# #????# ####??? | | ???# #?????????????????# #????# #?????? | | ???# #?????????????????# #????# +?????? | | ???# #?????????????????# #????# #?????? | | ???# #?????????????????# #????# #?????? | | #### #?????????????????? ?????# +?????? | | #?????????????????? ?????# #######?????? | | #?????????????????? ?????# #???????????? | | #######?????????????????? ?????# #???????????? | | #????????????????????????#?????# #???????????? | | #??????????????????????????????# #???????????? | | #??????????????????????????????# #???????????? | | #??????????????????????????????# #???????????? | | #??????????????????????????????# #???????????? | | #?????????????????????????????? ????????????? | | #???????????????????????????????? ????????????? | | #????????????????????????????????????????????????? | | #????????????????????????????????????????????????? | | ?????????????????????????????????????????????????? | +----------------------------------------------------+ Best States ------------- Heat Dissipation 49 Energy Generation 61 Energy Capacity 350 Matter Stores 300 Matter Capacity 300 Sight Range 16 Robot Scan Range 18 Terrain Scan Density 1010 Power Amplification 40 Additional Mass Support 12 Armor Coverage 1025 Resistance: KI 30 Resistance: TH 15 Resistance: EM 15 Utility Shielding 66 Weapon Cycling 20 Evasion (%) 76 Targeting Accuracy 12 Recoil Reduction 13 Kinecelleration 30 Offensive Hacking 20 Defensive Hacking 10 Item Schematics ----------------- Huge Storage Unit | -10/Materials | Hacked Adv. Treads | -8/Materials | Scanalyzed Lgt. Regenerative Plating | -2/Testing | Hacked Robot Schematics ------------------ None Fabricated ------------ Adv. Treads | x2 | -7/Factory Repaired ---------- Arm. Wheel | 65% | -10/Materials Battle Rifle | 22% | -8/Materials Adv. Treads | 20% | -7/Factory Adv. Treads | 19% | -5/Factory | Broken Adv. Treads | 1% | -5/Factory Studied --------- Adv. Treads | -8/Materials | Hacked Mass Driver | -5/Factory | Hacked Alien Tech Used ----------------- None Achievements -------------- Hot Goods Hunted Hydra Tank That Tickles Window Shopping Challenges ------------ None Game ------ Seed ThrusterNovaMask Manual? 0 Play Time 03:48:36 Cumulative 42.1 hours Start 2026.08.17 @ 18:46:30 End 2026.08.19 @ 16:01:04 Sessions 3 Manual Loads 0 Difficulty Rogue Special Mode None Game No. 25 Rogue 25 Adventurer 0 Explorer 0 Win Type - Total 0 Types 0/0/0/0/0/0/0/0/0/0 Lore% 39 Gallery% 30 Achievement% 32 Wizard Run 0 Options --------- Layout 1 ASCII 0 Keyboard 0 Movement Mouse Keybinds 0 Fullscreen 1 Font 24/Smallcaps Map View 50x35 Zoom Use 0% Tactical HUD 1 Map Filters NONE Filters NONE Steam 1 RUN: 881cd638-5cda-405e-868a-dd829c11c5b5